lending/lending_fUSD_20250406
["ID","MTS","AMOUNT","RATE_DAILY","PERIOD"]
[357260089,1743961833271,-501.84217985,0.00052054,120]
[357260090,1743961833281,-500.0,0.00052054,120]
[357260091,1743961833291,-500.0,0.00052054,120]
[357260092,1743961833302,-500.0,0.00052054,120]
[357260093,1743961833313,-500.0,0.00052054,120]
[357260094,1743961833323,-500.0,0.00052054,120]
[357260095,1743961833334,-500.0,0.00052054,120]
[357260096,1743961833344,-500.0,0.00052054,120]
[357260097,1743961833354,-554.40388332,0.00052054,120]
[357260098,1743961833364,-500.0,0.00052054,120]
[357260099,1743961833374,-500.0,0.00052054,120]
[357260100,1743961833384,-500.0,0.00052054,120]
[357260101,1743961833395,-500.0,0.00052054,120]
[357260102,1743961833408,-500.0,0.00052054,120]
[357260103,1743961833418,-500.0,0.00052054,120]
[357260104,1743961833428,-500.0,0.00052054,120]
[357260105,1743961833439,-500.0,0.00052054,120]
[357260106,1743961833449,-500.0,0.00052054,120]
[357260107,1743961833460,-500.0,0.00052054,120]
[357260108,1743961833470,-522.69297593,0.00052054,120]
[357260109,1743961833480,-500.0,0.00052054,120]
[357260110,1743961833490,-500.0,0.00052054,120]
[357260111,1743961833503,-521.61326236,0.00052054,120]
[357260112,1743961833512,-500.0,0.00052054,120]
[357260113,1743961833523,-609.19701463,0.00052054,120]
[357260114,1743961833533,-500.0,0.00052054,120]
[357260115,1743961833543,-508.87213724,0.00052054,120]
[357260116,1743961833555,-520.61321908,0.00052054,120]
[357260117,1743961833565,-500.0,0.00052054,120]
[357260118,1743961833574,-500.0,0.00052054,120]
[357260119,1743961833584,-507.17181443,0.00052054,120]
[357260120,1743961833594,-500.0,0.00052054,120]
[357260121,1743961833603,-500.0,0.00052054,120]
[357260122,1743961833613,-500.0,0.00052054,120]
[357260123,1743961833623,-1000.0,0.00052054,120]
[357260124,1743961833633,-1007.1,0.00052054,2]
[357260125,1743961833643,-510.09695748,0.00052054,120]
[357260126,1743961833656,-585.8,0.00052054,120]
[357260127,1743961833666,-556.96882529,0.00052054,120]
[357260128,1743961833676,-515.44413636,0.00052054,120]
[357260129,1743961833686,-506.34777339,0.00052054,120]
[357260130,1743961833697,-537.08990208,0.00052054,120]
[357260131,1743961833707,-500.0,0.00052054,120]
[357260132,1743961833717,-500.0,0.00052054,120]
[357260133,1743961833727,-500.0,0.00052054,120]
[357260134,1743961833738,-500.0,0.00052054,120]
[357260135,1743961833748,-592.05,0.00052054,120]
[357260136,1743961833758,-500.0,0.00052054,120]
[357260137,1743961833768,-500.0,0.00052054,30]
[357260138,1743961833778,-500.0,0.00052054,120]
[357260139,1743961833788,-500.0,0.00052054,120]
[357260140,1743961833797,-500.0,0.00052054,120]
[357260141,1743961833807,-546.96939022,0.00052054,120]
[357260142,1743961833817,-533.01158882,0.00052054,120]
[357260143,1743961833826,-500.0,0.00052054,120]
[357260144,1743961833836,-546.50850334,0.00052054,120]
[357260145,1743961833846,-500.0,0.00052054,120]
[357260146,1743961833856,-500.0,0.00052054,120]
[357260147,1743961833866,-500.0,0.00052054,120]
[357260148,1743961833875,-500.0,0.00052054,120]
[357260149,1743961833885,-500.0,0.00052054,120]
[357260150,1743961833895,-566.32983392,0.00052054,120]
[357260151,1743961833907,-500.0,0.00052054,120]
[357260152,1743961833917,-500.0,0.00052054,120]
[357260153,1743961833927,-430.83417744,0.00052054,120]
[357260154,1743961833937,-500.0,0.00052054,120]
[357260155,1743961833947,-500.0,0.00052054,120]
[357260156,1743961833958,-500.0,0.00052054,120]
[357260157,1743961833968,-524.4213238,0.00052054,120]
[357260158,1743961833978,-4519.25,0.00052054,120]
[357260159,1743961833987,-500.0,0.00052054,120]
[357260160,1743961833999,-500.0,0.00052054,120]
[357260161,1743961834009,-300.0,0.00052054,120]
[357260162,1743961834018,-500.0,0.00052054,120]
[357260163,1743961834028,-500.0,0.00052054,120]
[357260164,1743961834038,-500.0,0.00052054,120]
[357260165,1743961834048,-500.0,0.00052054,120]
[357260166,1743961834058,-849.68,0.00052054,120]
[357260167,1743961834067,-500.0,0.00052054,120]
[357260168,1743961834077,-500.0,0.00052054,120]
[357260169,1743961834087,-500.0,0.00052054,120]
[357260170,1743961834097,-500.0,0.00052054,120]
[357260171,1743961834107,-522.20650258,0.00052054,120]
[357260172,1743961834117,-500.0,0.00052054,120]
[357260173,1743961834128,-542.02594683,0.00052054,120]
[357260174,1743961834210,-533.1093518,0.00052054,120]
[357260175,1743961834230,-500.0,0.00052054,120]
[357260176,1743961834241,-500.0,0.00052054,120]
[357260177,1743961834251,-525.43284288,0.00052054,120]
[357260178,1743961834261,-539.93787439,0.00052054,120]
[357260179,1743961834271,-568.72197111,0.00052054,120]
[357260180,1743961834282,-500.0,0.00052054,120]
[357260181,1743961834292,-500.0,0.00052054,120]
[357260182,1743961834304,-500.0,0.00052054,120]
[357260183,1743961834314,-500.0,0.00052054,120]
[357260184,1743961834324,-500.0,0.00052054,120]
[357260185,1743961834334,-519.23776028,0.00052054,120]
[357260186,1743961834345,-500.0,0.00052054,120]
[357260187,1743961834355,-500.0,0.00052054,120]
[357260188,1743961834365,-518.76056881,0.00052054,120]
[357260189,1743961834374,-500.0,0.00052054,120]
[357260190,1743961834384,-500.0,0.00052054,120]
[357260191,1743961834394,-514.55759101,0.00052054,120]
[357260192,1743961834406,-542.17,0.00052054,120]
[357260193,1743961834415,-506.50208826,0.00052054,120]
[357260194,1743961834426,-532.7036994,0.00052054,120]
[357260195,1743961834436,-500.0,0.00052054,120]
[357260196,1743961834446,-530.92988478,0.00052054,120]
[357260197,1743961834456,-500.0,0.00052054,120]
[357260198,1743961834466,-494.0,0.00052054,120]
[357260199,1743961834475,-527.11030522,0.00052054,120]
[357260200,1743961834484,-565.60450812,0.00052054,120]
[357260201,1743961834495,-511.28343589,0.00052054,120]
[357260202,1743961834505,-500.0,0.00052054,120]
[357260203,1743961834515,-298.41766161,0.00052054,120]
[357260204,1743961834525,-500.0,0.00052054,120]
[357260205,1743961834535,-500.0,0.00052054,120]
[357260206,1743961834546,-525.4918671,0.00052054,120]
[357260207,1743961834556,-524.51732752,0.00052054,120]
[357260208,1743961834566,-535.02991804,0.00052054,120]
[357260209,1743961834576,-496.94811704,0.00052054,120]
[357260210,1743961834586,-500.0,0.00052054,120]
[357260211,1743961834596,-525.49218774,0.00052054,120]
[357260212,1743961834606,-523.83579126,0.00052054,120]
[357260213,1743961834615,-500.0,0.00052054,120]
[357260214,1743961834625,-500.0,0.00052054,120]
[357260215,1743961834634,-512.6103506,0.00052054,120]
[357260216,1743961834643,-500.0,0.00052054,120]
[357260217,1743961834654,-525.4440121,0.00052054,120]
[357260218,1743961834664,-518.75112846,0.00052054,120]
[357260219,1743961834674,-500.0,0.00052054,120]
[357260220,1743961834684,-500.0,0.00052054,120]
[357260221,1743961834694,-500.0,0.00052054,120]
[357260222,1743961834704,-532.89343073,0.00052054,120]
[357260223,1743961834714,-500.0,0.00052054,120]
[357260224,1743961834723,-529.33814129,0.00052054,120]
[357260225,1743961834733,-500.0,0.00052054,120]
[357260226,1743961834743,-500.0,0.00052054,120]
[357260227,1743961834753,-500.0,0.00052054,120]
[357260228,1743961834763,-500.0,0.00052054,120]
[357260229,1743961834773,-500.0,0.00052054,120]
[357260230,1743961834783,-500.0,0.00052054,120]
[357260231,1743961834793,-500.0,0.00052054,120]
[357260232,1743961834803,-500.0,0.00052054,120]
[357260233,1743961834813,-515.18858463,0.00052054,120]
[357260234,1743961834822,-525.16102738,0.00052054,120]
[357260235,1743961834831,-500.0,0.00052054,120]
[357260236,1743961834840,-534.41927883,0.00052054,120]
[357260237,1743961834850,-524.66321941,0.00052054,120]
[357260238,1743961834860,-500.0,0.00052054,120]
[357260239,1743961834869,-548.90506944,0.00052054,120]
[357260240,1743961834879,-500.0,0.00052054,120]
[357260241,1743961834888,-514.94122911,0.00052054,120]
[357260242,1743961834899,-500.0,0.00052054,120]
[357260243,1743961834911,-500.0,0.00052054,120]
[357260244,1743961834921,-516.68220864,0.00052054,120]
[357260245,1743961834931,-500.0,0.00052054,120]
[357260246,1743961834941,-500.0,0.00052054,120]
[357260247,1743961834951,-500.0,0.00052054,120]
[357260248,1743961834962,-507.02649295,0.00052054,120]
[357260249,1743961834972,-500.0,0.00052054,120]
[357260250,1743961834982,-528.88589618,0.00052054,120]
[357260251,1743961834992,-511.15342687,0.00052054,120]
[357260252,1743961835002,-500.0,0.00052054,120]
[357260253,1743961835011,-500.0,0.00052054,120]
[357260254,1743961835021,-500.0,0.00052054,120]
[357260255,1743961835032,-500.0,0.00052054,120]
[357260256,1743961835041,-500.0,0.00052054,120]
[357260257,1743961835052,-500.0,0.00052054,120]
[357260258,1743961835061,-500.0,0.00052054,120]
[357260259,1743961835073,-551.95775484,0.00052054,120]
[357260260,1743961835083,-500.0,0.00052054,120]
[357260261,1743961835093,-500.0,0.00052054,120]
[357260262,1743961835102,-533.08998831,0.00052054,120]
[357260263,1743961835111,-500.0,0.00052054,120]
[357260264,1743961835121,-500.0,0.00052054,120]
[357260265,1743961835130,-522.72683102,0.00052054,120]
[357260266,1743961835140,-584.28578111,0.00052054,120]
[357260267,1743961835153,-500.0,0.00052054,120]
[357260268,1743961835165,-500.0,0.00052054,120]
[357260269,1743961835174,-500.0,0.00052054,120]
[357260270,1743961835184,-513.26248059,0.00052054,120]
[357260271,1743961835194,-500.0,0.00052054,120]
[357260272,1743961835206,-500.0,0.00052054,120]
[357260273,1743961835216,-500.0,0.00052054,120]
[357260274,1743961835225,-500.0,0.00052054,120]
[357260275,1743961835235,-500.0,0.00052054,120]
[357260276,1743961835245,-531.57928506,0.00052054,120]
[357260277,1743961835253,-500.0,0.00052054,120]
[357260278,1743961835262,-509.24987459,0.00052054,120]
[357260279,1743961835270,-500.0,0.00052054,120]
[357260280,1743961835281,-522.57729004,0.00052054,120]
[357260281,1743961835290,-500.0,0.00052054,120]
[357260282,1743961835299,-569.81,0.00052054,120]
[357260283,1743961835308,-500.0,0.00052054,120]
[357260284,1743961835317,-302.25703441,0.00052054,120]
[357260285,1743961835326,-500.0,0.00052054,120]
[357260286,1743961835334,-500.0,0.00052054,120]
[357260287,1743961835343,-538.91944704,0.00052054,120]
[357260288,1743961835352,-500.0,0.00052054,120]
[357260289,1743961835360,-505.39729266,0.00052054,120]
[357260290,1743961835369,-500.0,0.00052054,120]
[357260291,1743961835378,-500.0,0.00052054,120]
[357260292,1743961835387,-511.47069396,0.00052054,120]
[357260293,1743961835396,-574.45790272,0.00052054,120]
[357260294,1743961835409,-301.57287779,0.00052054,120]
[357260295,1743961835418,-500.0,0.00052054,120]
[357260296,1743961835427,-508.66820392,0.00052054,120]
[357260297,1743961835436,-500.0,0.00052054,120]
[357260298,1743961835523,-500.0,0.00052054,120]
[357260299,1743961835532,-515.88884108,0.00052054,120]
[357260300,1743961835541,-500.0,0.00052054,120]
[357260301,1743961835550,-606.84888447,0.00052054,120]
[357260302,1743961835558,-502.02315676,0.00052054,120]
[357260303,1743961835567,-500.0,0.00052054,120]
[357260304,1743961835575,-500.0,0.00052054,120]
[357260305,1743961835583,-500.0,0.00052054,120]
[357260306,1743961835591,-500.0,0.00052054,120]
[357260307,1743961835600,-500.0,0.00052054,120]
[357260308,1743961835608,-165.4,0.00052082,2]
[357260309,1743961835616,-168.81,0.00052088,2]
[357260310,1743961835625,-168.05,0.00052112,30]
[357260311,1743961835634,-168.81,0.00052131,2]
[357260312,1743961835643,-168.81,0.00052174,2]
[357260313,1743961835654,-520.53,0.0005221,2]
[357260314,1743961835662,-752.33,0.00052225,2]
[357260315,1743961835671,-542.52,0.00052235,2]
[357260316,1743961835679,-1883.84982575,0.00052392,15]
[357260317,1743961835687,-153.0,0.000524,120]
[357260318,1743961835697,-160.633,0.000524,96]
[357260319,1743961835708,-593.679,0.000524,96]
[357260320,1743961835717,-152.33,0.00052427,120]
[357260321,1743961835726,-191.94042356,0.0005283,120]
[357260322,1743961835735,-180.66263721,0.0005283,120]
[357260323,1743961835744,-500.0,0.0005283,120]
[357260324,1743961835754,-500.0,0.0005283,120]
[357260325,1743961835764,-500.0,0.0005283,120]
[357260326,1743961835773,-500.0,0.0005283,120]
[357260327,1743961835783,-500.0,0.0005283,120]
[357260328,1743961835792,-500.0,0.0005283,120]
[357260329,1743961835802,-500.0,0.0005283,120]
[357260330,1743961835811,-500.0,0.0005283,120]
[357260331,1743961835821,-500.0,0.0005283,120]
[357260332,1743961835830,-500.0,0.0005283,120]
[357260333,1743961835839,-500.0,0.0005283,120]
[357260334,1743961835850,-500.0,0.0005283,120]
[357260335,1743961835859,-500.0,0.0005283,120]
[357260336,1743961835871,-500.0,0.0005283,120]
[357260337,1743961835880,-500.0,0.0005283,120]
[357260338,1743961835889,-500.0,0.0005283,120]
[357260339,1743961835900,-936.68515637,0.0005283,120]
[357260340,1743961835908,-936.68515637,0.0005283,120]
[357260341,1743961835915,-936.68515637,0.0005283,120]
[357260342,1743961835924,-936.68515637,0.0005283,120]
[357260343,1743961835934,-936.68515637,0.0005283,120]
[357260344,1743961835944,-936.68515637,0.0005283,120]
[357260345,1743961835953,-936.68515637,0.0005283,120]
[357260346,1743961835963,-936.68515637,0.0005283,120]
[357260347,1743961835973,-936.68515637,0.0005283,120]
[357260348,1743961835983,-936.68515637,0.0005283,120]
[357260349,1743961835993,-936.68515637,0.0005283,120]
[357260350,1743961836003,-936.68515637,0.0005283,120]
[357260351,1743961836012,-936.68515637,0.0005283,120]
[357260352,1743961836022,-936.68515637,0.0005283,120]
[357260353,1743961836033,-1883.84982575,0.00052831,15]
[357260354,1743961836043,-151.0,0.00052868,30]
[357260355,1743961836052,-169.11,0.00052975,2]
[357260356,1743961836062,-749.21,0.00053248,2]
[357260357,1743961836072,-472.4,0.00053262,120]
[357260358,1743961836082,-1883.84982575,0.00053269,15]
[357260359,1743961836092,-151.0,0.00053293,30]
[357260360,1743961836102,-6333.51151089,0.00053305,2]
[357260361,1743961836112,-23900.0,0.00053318,2]
[357260362,1743961836122,-151.0,0.0005332,30]
[357260363,1743961836132,-2000.0,0.000534,2]
[357260364,1743961836142,-150.0,0.00053422,7]
[357260365,1743961836155,-500.0,0.00053424,30]
[357260366,1743961836165,-500.0,0.00053428,60]
[357260367,1743961836177,-151.0,0.00053562,120]
[357260368,1743961836187,-1883.84982575,0.00053708,15]
[357260369,1743961836197,-156.8040571,0.0005378,54]
[357260370,1743961836206,-466.91581752,0.0005379,15]
[357260371,1743961836218,-841.74232188,0.0005379,25]
[357260372,1743961836228,-169.62709194,0.0005379,31]
[357260373,1743961836239,-459.3979,0.000538,120]
[357260374,1743961836251,-752.33,0.0005386,2]
[357260375,1743961836261,-151.0,0.00053868,2]
[357260376,1743961836271,-151.0,0.00053868,2]
[357260377,1743961836280,-500.0,0.00053869,120]
[357260378,1743961836290,-500.0,0.00053869,120]
[357260379,1743961836299,-500.0,0.00053869,120]
[357260380,1743961836309,-500.0,0.00053869,120]
[357260381,1743961836318,-500.0,0.00053869,120]
[357260382,1743961836328,-615.97535908,0.00053869,120]
[357260383,1743961836338,-500.0,0.00053869,120]
[357260384,1743961836347,-500.0,0.00053869,120]
[357260385,1743961836356,-500.0,0.00053869,120]
[357260386,1743961836365,-500.0,0.00053869,120]
[357260387,1743961836375,-500.0,0.00053869,120]
[357260388,1743961836384,-500.0,0.00053869,120]
[357260389,1743961836393,-500.0,0.00053869,120]
[357260390,1743961836404,-500.0,0.00053869,120]
[357260391,1743961836414,-500.0,0.00053869,120]
[357260392,1743961836423,-500.0,0.00053869,120]
[357260393,1743961836433,-500.0,0.00053869,120]
[357260394,1743961836442,-500.0,0.00053869,120]
[357260395,1743961836452,-500.0,0.00053869,120]
[357260396,1743961836461,-500.0,0.00053869,2]
[357260397,1743961836471,-500.0,0.00053869,120]
[357260398,1743961836480,-500.0,0.00053869,120]
[357260399,1743961836489,-628.67,0.00053869,120]
[357260400,1743961836499,-1532.2,0.00053869,2]
[357260401,1743961836508,-151.65,0.00053869,120]
[357260402,1743961836518,-182175.025494,0.0005387,4]
[357260403,1743961836527,-42805.5910962,0.0005387,4]
[357260404,1743961836536,-188.516306,0.0005387,120]
[357260405,1743961836545,-188.516306,0.0005387,120]
[357260406,1743961836555,-151.0,0.0005387,120]
[357260407,1743961836564,-208.723073,0.0005387,120]
[357260408,1743961836575,-151.0,0.0005387,120]
[357260409,1743961836585,-208.723073,0.0005387,120]
[357260410,1743961836661,-151.0,0.0005387,120]
[357260411,1743961836677,-151.0,0.0005387,120]
[357260412,1743961836687,-167.53508,0.0005387,120]
[357260413,1743961836696,-166.1,0.0005387,120]
[357260414,1743961836706,-166.1,0.0005387,120]
[357260415,1743961836715,-151.0,0.0005387,120]
[357260416,1743961836725,-151.0,0.0005387,120]
[357260417,1743961836734,-151.0,0.0005387,120]
[357260418,1743961836743,-151.65,0.0005387,120]
[357260419,1743961836753,-765.44489968,0.0005387,7]
[357260420,1743961836763,-188.516306,0.00053879,120]
[357260421,1743961836772,-188.516306,0.00053879,120]
[357260422,1743961836782,-1040.42374841,0.00053879,90]
[357260423,1743961836791,-151.0,0.00053879,120]
[357260424,1743961836801,-208.723073,0.00053879,120]
[357260425,1743961836811,-151.0,0.00053879,120]
[357260426,1743961836821,-208.723073,0.00053879,120]
[357260427,1743961836831,-151.0,0.00053879,120]
[357260428,1743961836840,-151.0,0.00053879,120]
[357260429,1743961836850,-166.1,0.00053879,120]
[357260430,1743961836860,-166.1,0.00053879,120]
[357260431,1743961836870,-151.0,0.00053879,120]
[357260432,1743961836879,-231.170566,0.00053879,120]
[357260433,1743961836889,-151.0,0.00053879,120]
[357260434,1743961836898,-42507.5059486,0.00053879,4]
[357260435,1743961836911,-42805.5910962,0.00053879,4]
[357260436,1743961836920,-36209.62940789,0.0005388,60]
[357260485,1743961838239,-325.87070381,0.00053869,2]
[357260488,1743961838259,-174.12929619,0.00053869,2]
[357260490,1743961838268,-151.0,0.0005387,120]
[357260492,1743961838278,-170.043109,0.0005387,120]
[357260494,1743961838287,-151.0,0.0005387,120]
[357260496,1743961838297,-151.0,0.00053879,120]
[357260498,1743961838307,-151.949207,0.00053879,120]
[357260500,1743961838317,-4587.43368034,0.0005388,60]
[357260503,1743961838334,-3023.02404477,0.0005388,60]
[357260505,1743961838346,-16203.79999999,0.0005388,60]
[357260507,1743961838359,-26619.44412282,0.0005388,60]
[357260510,1743961838374,-279.72147954,0.0005388,60]
[357260512,1743961838386,-4673.12999273,0.0005388,60]
[357260514,1743961838399,-874.79984288,0.0005388,60]
[357260516,1743961838412,-705.81984137,0.0005388,60]
[357260518,1743961838425,-106823.19758767,0.0005388,60]
[357260520,1743961838435,-200000.0,0.0005388,60]
[357260522,1743961838444,-75057.0436081,0.0005388,60]
[357260524,1743961838454,-151.0,0.0005388,120]
[357260525,1743961838463,-396.167377,0.0005388,120]
[357260526,1743961838474,-396.167377,0.0005388,120]
[357260527,1743961838483,-151.0,0.0005388,120]
[357260528,1743961838493,-1311.704944,0.0005388,120]
[357260529,1743961838503,-1311.704944,0.0005388,120]
[357260530,1743961838512,-188.516306,0.0005388,120]
[357260531,1743961838522,-188.516306,0.0005388,120]
[357260532,1743961838532,-188.516306,0.0005388,120]
[357260533,1743961838541,-188.516306,0.0005388,120]
[357260534,1743961838551,-188.516306,0.0005388,120]
[357260536,1743961838561,-188.516306,0.0005388,120]
[357260538,1743961838570,-188.516306,0.0005388,120]
[357260540,1743961838579,-188.516306,0.0005388,120]
[357260542,1743961838587,-188.516306,0.0005388,120]
[357260544,1743961838597,-188.516306,0.0005388,120]
[357260546,1743961838607,-209.393388,0.0005388,120]
[357260548,1743961838617,-208.723073,0.0005388,120]
[357260550,1743961838627,-208.723073,0.0005388,120]
[357260552,1743961838636,-208.723073,0.0005388,120]
[357260554,1743961838645,-208.723073,0.0005388,120]
[357260556,1743961838657,-208.723073,0.0005388,120]
[357260558,1743961838667,-230.841428,0.0005388,120]
[357260560,1743961838676,-208.723073,0.0005388,120]
[357260562,1743961838686,-208.723073,0.0005388,120]
[357260564,1743961838695,-208.723073,0.0005388,120]
[357260566,1743961838705,-208.723073,0.0005388,120]
[357260568,1743961838714,-151.0,0.0005388,120]
[357260570,1743961838724,-208.723073,0.0005388,120]
[357260572,1743961838734,-151.0,0.0005388,120]
[357260574,1743961838743,-151.0,0.0005388,120]
[357260575,1743961838752,-151.0,0.0005388,120]
[357260577,1743961838761,-151.0,0.0005388,120]
[357260579,1743961838771,-151.0,0.0005388,120]
[357260581,1743961838781,-151.0,0.0005388,120]
[357260583,1743961838790,-151.0,0.0005388,120]
[357260585,1743961838800,-151.0,0.0005388,120]
[357260587,1743961838810,-268.789134,0.0005388,120]
[357260589,1743961838819,-166.1,0.0005388,120]
[357260591,1743961838828,-166.1,0.0005388,120]
[357260593,1743961838836,-166.1,0.0005388,120]
[357260595,1743961838846,-166.1,0.0005388,120]
[357260597,1743961838856,-166.1,0.0005388,120]
[357260599,1743961838866,-166.1,0.0005388,120]
[357260601,1743961838875,-166.1,0.0005388,120]
[357260603,1743961838884,-151.0,0.0005388,120]
[357260605,1743961838894,-166.1,0.0005388,120]
[357260607,1743961838905,-151.0,0.0005388,120]
[357260609,1743961838914,-166.1,0.0005388,120]
[357260611,1743961838923,-151.0,0.0005388,120]
[357260613,1743961838933,-166.1,0.0005388,120]
[357260615,1743961838943,-151.0,0.0005388,120]
[357260617,1743961838952,-151.0,0.0005388,120]
[357260619,1743961838961,-408.03663741,0.0005388,61]
[357260621,1743961838971,-151.0,0.0005388,120]
[357260623,1743961838980,-151.0,0.0005388,120]
[357260625,1743961838989,-151.0,0.0005388,120]
[357260627,1743961838998,-249.015855,0.0005388,120]
[357260629,1743961839007,-75375.44858267,0.0005388,61]
[357260631,1743961839017,-151.0,0.0005388,120]
[357260633,1743961839027,-151.0,0.0005388,120]
[357260635,1743961839036,-151.0,0.0005388,120]
[357260637,1743961839045,-151.0,0.0005388,120]
[357260639,1743961839055,-151.0,0.0005388,120]
[357260641,1743961839065,-66695.10349228,0.0005388,4]
[357260662,1743961839716,-40513.0,0.0005388,4]
[357260663,1743961839728,-810.81,0.0005388,4]
[357260664,1743961839771,-444.31471734,0.0005388,4]
[357260665,1743961839783,-760.0000001,0.0005388,4]
[357260666,1743961839881,-3714.711975,0.0005388,4]
[357260667,1743961839936,-329.0,0.00052723,2]
[357260668,1743961839948,-3585.5268913,0.00052723,2]
[357260675,1743961840047,-889.85649252,0.00052723,2]
[357260686,1743961840148,-4982.98800028,0.00052723,2]
[357260698,1743961840268,-456.04207234,0.00052723,2]
[357260700,1743961840284,-756.88072736,0.00052723,2]
[357260936,1743961842661,-317.3781412,0.00052723,2]
[357260941,1743961843172,-12582.327675,0.00052723,2]
[357260942,1743961843183,-500.0,0.00053869,120]
[357260943,1743961843191,-500.25502811,0.00053869,2]
[357260944,1743961843201,-500.0,0.00053869,120]
[357260945,1743961843211,-151.0,0.0005387,120]
[357260946,1743961843221,-158.928635,0.00053879,120]
[357260947,1743961843230,-150.0,0.0005388,4]
[357260948,1743961843240,-40473.94375758,0.0005388,4]
[357260949,1743961843252,-10545.6390027,0.0005388,4]
[357260950,1743961843262,-6032.26972323,0.0005388,4]
[357260951,1743961843274,-4663.05584438,0.0005388,4]
[357260952,1743961843285,-555.55,0.0005388,4]
[357260953,1743961843341,-0.30836428,0.0005388,4]
[357260954,1743961843362,-86538.67881383,0.0005388,4]
[357260955,1743961843378,-6423.87208413,0.0005388,4]
[357260956,1743961843395,-81500.00000001,0.0005388,4]
[357260957,1743961843416,-810.0,0.0005388,4]
[357260958,1743961843428,-10381.98421314,0.0005388,4]
[357260959,1743961843438,-500.0,0.00053888,120]
[357260960,1743961843449,-500.0,0.00053888,120]
[357260961,1743961843459,-500.0,0.00053888,120]
[357260962,1743961843468,-500.0,0.00053888,120]
[357260963,1743961843477,-500.0,0.00053888,120]
[357260964,1743961843486,-673.13,0.00053888,120]
[357260965,1743961843496,-500.0,0.00053888,120]
[357260966,1743961843505,-500.0,0.00053888,120]
[357260967,1743961843515,-500.0,0.00053888,120]
[357260968,1743961843526,-500.0,0.00053888,120]
[357260969,1743961843535,-500.0,0.00053888,120]
[357260970,1743961843545,-500.0,0.00053888,120]
[357260972,1743961843555,-500.0,0.00053888,120]
[357260974,1743961843564,-500.0,0.00053888,120]
[357260976,1743961843573,-500.0,0.00053888,120]
[357260978,1743961843583,-500.0,0.00053888,120]
[357260980,1743961843594,-500.0,0.00053888,120]
[357260982,1743961843603,-500.0,0.00053888,120]
[357260984,1743961843612,-500.0,0.00053888,120]
[357260986,1743961843622,-500.0,0.00053888,120]
[357260988,1743961843632,-500.0,0.00053888,120]
[357260990,1743961843642,-169.813843,0.00053888,120]
[357260992,1743961843652,-500.0,0.00053888,120]
[357260994,1743961843665,-628.742776,0.00053888,120]
[357260996,1743961843676,-166.382561,0.00053888,120]
[357260998,1743961843686,-653.97,0.00053888,120]
[357261000,1743961843696,-8561.11821925,0.00053889,4]
[357261002,1743961843707,-500.0,0.00053889,120]
[357261004,1743961843717,-500.0,0.00053889,120]
[357261006,1743961843727,-507.15617238,0.00053889,120]
[357261008,1743961843737,-500.0,0.00053889,120]
[357261010,1743961843747,-500.0,0.00053889,120]
[357261012,1743961843758,-500.0,0.00053889,120]
[357261013,1743961843768,-511.19102551,0.00053889,120]
[357261014,1743961843778,-500.0,0.00053889,120]
[357261015,1743961843788,-511.01866525,0.00053889,120]
[357261016,1743961843798,-521.57895703,0.00053889,120]
[357261017,1743961843808,-524.27696385,0.00053889,120]
[357261018,1743961843818,-500.0,0.00053889,120]